fUST/lending_fUST_20250723
["ID","MTS","AMOUNT","RATE_DAILY","PERIOD"]
[374252385,1753255851350,-2405.88,0.00019899,2]
[374252386,1753255851360,-460.0,0.00019899,2]
[374252387,1753255851369,-460.0,0.00019899,2]
[374252388,1753255851380,-460.0,0.00019899,2]
[374252389,1753255851389,-1445.45940518,0.000199,2]
[374252390,1753255851398,-1548.40508726,0.00019943,2]
[374252391,1753255851407,-500.0,0.00019973,2]
[374252392,1753255851416,-500.59710166,0.00019973,2]
[374252393,1753255851426,-500.0,0.00019973,2]
[374252394,1753255851435,-503.73116406,0.00019973,2]
[374252395,1753255851444,-500.98894013,0.00019973,2]
[374252396,1753255851453,-500.0,0.00019973,2]
[374252397,1753255851462,-500.0,0.00019973,2]
[374252398,1753255851472,-500.0,0.00019973,2]
[374252399,1753255851482,-500.0,0.00019973,2]
[374252400,1753255851491,-501.28904073,0.00019973,2]
[374252401,1753255851501,-500.0,0.00019973,2]
[374252402,1753255851510,-500.0,0.00019973,2]
[374252403,1753255851520,-500.0,0.00019973,2]
[374252404,1753255851530,-504.13404201,0.00019973,2]
[374252405,1753255851540,-501.27535184,0.00019973,2]
[374252406,1753255851550,-502.49980511,0.00019973,2]
[374252407,1753255851560,-501.10055354,0.00019973,2]
[374252408,1753255851570,-501.32912876,0.00019973,2]
[374252409,1753255851580,-500.0,0.00019973,2]
[374252410,1753255851591,-100000.0,0.0001999,2]
[374252411,1753255851600,-1241.6,0.00019999,2]
[374252412,1753255851611,-460.0,0.00019999,2]
[374252413,1753255851624,-460.0,0.0002,2]
[374252414,1753255851633,-460.0,0.0002,2]
[374252415,1753255851642,-460.0,0.0002,2]
[374252416,1753255851652,-460.0,0.0002,2]
[374252417,1753255851668,-512.00645446,0.0002,2]
[374252418,1753255851679,-460.0,0.0002,2]
[374252419,1753255851689,-579.6205766,0.0002,2]
[374252420,1753255851700,-460.0,0.0002,2]
[374252421,1753255851710,-460.0,0.0002,2]
[374252422,1753255851720,-151.0,0.0002,2]
[374252423,1753255851729,-460.0,0.0002,2]
[374252424,1753255851739,-460.0,0.0002,2]
[374252425,1753255851748,-460.0,0.0002,2]
[374252426,1753255851758,-192.87853338,0.0002,2]
[374252427,1753255851768,-464.30066777,0.0002,2]
[374252428,1753255851788,-460.0,0.0002,2]
[374252429,1753255851800,-460.0,0.0002,2]
[374252430,1753255851810,-464.94195844,0.0002,2]
[374252431,1753255851819,-1399.15,0.0002,2]
[374252432,1753255851829,-460.0,0.0002,2]
[374252433,1753255851838,-532.99586021,0.0002,2]
[374252434,1753255851847,-460.0,0.0002,2]
[374252435,1753255851857,-461.91934493,0.0002,2]
[374252436,1753255851866,-460.0,0.0002,2]
[374252437,1753255851875,-460.0,0.0002,2]
[374252438,1753255851884,-183.56291898,0.0002,2]
[374252439,1753255851894,-460.0,0.0002,2]
[374252440,1753255851903,-464.18986131,0.0002,2]
[374252441,1753255851913,-460.0,0.0002,2]
[374252442,1753255851922,-460.0,0.0002,2]
[374252443,1753255851931,-460.0,0.0002,2]
[374252444,1753255851941,-460.0,0.0002,2]
[374252445,1753255851950,-460.0,0.0002,2]
[374252446,1753255851959,-460.0,0.0002,2]
[374252447,1753255851968,-460.0,0.0002,2]
[374252448,1753255851978,-460.0,0.0002,2]
[374252449,1753255851987,-460.0,0.0002,2]
[374252450,1753255851997,-460.0,0.0002,2]
[374252451,1753255852006,-460.0,0.0002,2]
[374252452,1753255852015,-460.0,0.0002,2]
[374252453,1753255852025,-460.0,0.0002,2]
[374252454,1753255852034,-460.0,0.0002,2]
[374252455,1753255852043,-460.0,0.0002,2]
[374252456,1753255852052,-460.0,0.0002,2]
[374252457,1753255852061,-460.0,0.0002,2]
[374252458,1753255852071,-460.0,0.0002,2]
[374252459,1753255852080,-460.0,0.0002,2]
[374252460,1753255852089,-460.0,0.0002,2]
[374252461,1753255852098,-465.77190469,0.0002,2]
[374252462,1753255852107,-460.0,0.0002,2]
[374252463,1753255852116,-460.0,0.0002,2]
[374252464,1753255852125,-460.0,0.0002,2]
[374252465,1753255852134,-227.87,0.0002,2]
[374252466,1753255852143,-280.65468823,0.0002,2]
[374252467,1753255852153,-483.75,0.0002,2]
[374252468,1753255852163,-460.93,0.0002,2]
[374252469,1753255852172,-460.0,0.0002,2]
[374252470,1753255852182,-460.0,0.0002,2]
[374252471,1753255852191,-460.0,0.0002,2]
[374252472,1753255852201,-750.54,0.0002,2]
[374252473,1753255852210,-474.73,0.0002,2]
[374252474,1753255852220,-178.02,0.0002,2]
[374252475,1753255852230,-460.0,0.0002,2]
[374252476,1753255852239,-466.41807707,0.0002,2]
[374252477,1753255852249,-460.0,0.0002,2]
[374252478,1753255852258,-390.47722841,0.0002,2]
[374252479,1753255852267,-460.0,0.0002,2]
[374252480,1753255852277,-460.0,0.0002,2]
[374252481,1753255852286,-460.0,0.0002,2]
[374252482,1753255852296,-504.3,0.0002,2]
[374252483,1753255852306,-460.0,0.0002,2]
[374252484,1753255852315,-460.0,0.0002,2]
[374252485,1753255852324,-460.0,0.0002,2]
[374252486,1753255852334,-460.0,0.0002,2]
[374252487,1753255852343,-460.0,0.0002,2]
[374252488,1753255852353,-460.0,0.0002,2]
[374252489,1753255852362,-4102.28,0.0002,2]
[374252490,1753255852372,-460.0,0.0002,2]
[374252491,1753255852381,-481.33150969,0.0002,2]
[374252492,1753255852391,-460.0,0.0002,2]
[374252493,1753255852400,-460.0,0.0002,2]
[374252494,1753255852409,-460.0,0.0002,2]
[374252495,1753255852419,-463.0195222,0.0002,2]
[374252496,1753255852428,-460.0,0.0002,2]
[374252497,1753255852438,-460.0,0.0002,2]
[374252498,1753255852447,-694.17,0.0002,2]
[374252499,1753255852456,-460.0,0.0002,2]
[374252500,1753255852465,-460.0,0.0002,2]
[374252501,1753255852475,-460.0,0.0002,2]
[374252502,1753255852484,-460.0,0.0002,2]
[374252503,1753255852493,-518.92,0.0002,2]
[374252504,1753255852502,-460.0,0.0002,2]
[374252505,1753255852512,-460.0,0.0002,2]
[374252506,1753255852521,-460.0,0.0002,2]
[374252507,1753255852530,-460.0,0.0002,2]
[374252508,1753255852540,-460.0,0.0002,2]
[374252509,1753255852550,-460.0,0.0002,2]
[374252510,1753255852560,-460.0,0.0002,2]
[374252511,1753255852569,-460.0,0.0002,2]
[374252512,1753255852578,-460.0,0.0002,2]
[374252513,1753255852588,-460.0,0.0002,2]
[374252514,1753255852597,-1140.67,0.0002,2]
[374252515,1753255852607,-396.1201308,0.0002,2]
[374252516,1753255852716,-460.0,0.0002,2]
[374252517,1753255852725,-460.0,0.0002,2]
[374252518,1753255852735,-460.0,0.0002,2]
[374252519,1753255852744,-460.0,0.0002,2]
[374252520,1753255852754,-460.0,0.0002,2]
[374252521,1753255852763,-1447.65,0.0002,2]
[374252522,1753255852773,-460.0,0.0002,2]
[374252523,1753255852782,-460.0,0.0002,2]
[374252524,1753255852792,-460.0,0.0002,2]
[374252525,1753255852801,-460.0,0.0002,2]
[374252526,1753255852810,-460.0,0.0002,2]
[374252527,1753255852819,-460.0,0.0002,2]
[374252528,1753255852829,-2127.15,0.0002,2]
[374252529,1753255852838,-460.0,0.0002,2]
[374252530,1753255852847,-460.0,0.0002,2]
[374252531,1753255852857,-292.31533465,0.0002,2]
[374252532,1753255852866,-460.0,0.0002,2]
[374252533,1753255852876,-460.0,0.0002,2]
[374252534,1753255852886,-460.0,0.0002,2]
[374252535,1753255852895,-460.0,0.0002,2]
[374252536,1753255852904,-460.0,0.0002,2]
[374252537,1753255852914,-460.0,0.0002,2]
[374252538,1753255852923,-460.0,0.0002,2]
[374252539,1753255852932,-460.0,0.0002,2]
[374252540,1753255852941,-460.0,0.0002,2]
[374252541,1753255852950,-460.0,0.0002,2]
[374252542,1753255852959,-1272.75,0.0002,2]
[374252543,1753255852969,-460.0,0.0002,2]
[374252544,1753255852978,-460.0,0.0002,2]
[374252545,1753255852987,-460.0,0.0002,2]
[374252546,1753255852997,-1455.12,0.0002,2]
[374252547,1753255853007,-460.0,0.0002,2]
[374252548,1753255853017,-460.0,0.0002,2]
[374252549,1753255853026,-4135.99150682,0.0002,2]
[374252550,1753255853035,-460.0,0.0002,2]
[374252551,1753255853044,-460.0,0.0002,2]
[374252552,1753255853053,-594.65,0.0002,2]
[374252553,1753255853062,-463.01,0.0002,2]
[374252554,1753255853071,-1681.82,0.0002,2]
[374252555,1753255853080,-460.0,0.0002,2]
[374252556,1753255853090,-460.0,0.0002,2]
[374252557,1753255853099,-460.0,0.0002,2]
[374252558,1753255853108,-460.0,0.0002,2]
[374252559,1753255853117,-460.0,0.0002,2]
[374252560,1753255853126,-460.0,0.0002,2]
[374252561,1753255853136,-3384.83,0.0002,2]
[374252562,1753255853145,-460.0,0.0002,2]
[374252563,1753255853154,-460.0,0.0002,2]
[374252564,1753255853163,-460.0,0.0002,2]
[374252566,1753255853172,-460.0,0.0002,2]
[374252567,1753255853181,-499.96,0.0002,2]
[374252568,1753255853190,-460.0,0.0002,2]
[374252569,1753255853199,-812.87,0.0002,2]
[374252570,1753255853209,-460.0,0.0002,2]
[374252571,1753255853218,-460.0,0.0002,2]
[374252572,1753255853227,-460.0,0.0002,2]
[374252573,1753255853238,-460.0,0.0002,2]
[374252574,1753255853247,-460.0,0.0002,2]
[374252575,1753255853256,-460.0,0.0002,2]
[374252576,1753255853265,-460.0,0.0002,2]
[374252577,1753255853275,-460.0,0.0002,2]
[374252578,1753255853283,-460.0,0.0002,2]
[374252579,1753255853293,-460.0,0.0002,2]
[374252580,1753255853302,-1190.21,0.0002,2]
[374252581,1753255853311,-2917.93,0.0002,2]
[374252582,1753255853320,-460.0,0.0002,2]
[374252583,1753255853330,-1775.05,0.0002,2]
[374252584,1753255853339,-460.0,0.0002,2]
[374252585,1753255853348,-2438.43,0.0002,2]
[374252586,1753255853357,-460.0,0.0002,2]
[374252587,1753255853366,-460.0,0.0002,2]
[374252588,1753255853377,-460.0,0.0002,2]
[374252589,1753255853387,-460.0,0.0002,2]
[374252590,1753255853401,-460.0,0.0002,2]
[374252591,1753255853410,-460.0,0.0002,2]
[374252592,1753255853420,-460.0,0.0002,2]
[374252593,1753255853429,-1445.45940499,0.00020107,2]
[374252594,1753255853439,-3317.43940118,0.00020171,2]
[374252595,1753255853448,-151.0,0.00020173,2]
[374252596,1753255853457,-151.0,0.00020173,2]
[374252597,1753255853466,-1548.59,0.00020173,2]
[374252598,1753255853475,-2405.88,0.00020173,2]
[374252599,1753255853485,-460.0,0.00020173,2]
[374252600,1753255853494,-460.0,0.00020173,2]
[374252601,1753255853503,-463.59684902,0.00020173,2]
[374252602,1753255853513,-313.773045,0.00020187,2]
[374252603,1753255853522,-151.0,0.000202,4]
[374252604,1753255853531,-480.33614442,0.00020273,2]
[374252605,1753255853540,-460.0,0.00020273,2]
[374252606,1753255853550,-460.0,0.00020273,2]
[374252607,1753255853559,-460.0,0.00020273,2]
[374252608,1753255853568,-460.0,0.00020273,2]
[374252609,1753255853579,-460.0,0.00020273,2]
[374252610,1753255853590,-460.0,0.00020273,2]
[374252611,1753255853600,-460.0,0.00020273,2]
[374252612,1753255853610,-468.47166745,0.00020273,2]
[374252613,1753255853621,-460.0,0.00020273,2]
[374252614,1753255853631,-460.0,0.00020273,2]
[374252615,1753255853640,-1399.15,0.00020273,2]
[374252616,1753255853651,-460.0,0.00020273,2]
[374252617,1753255853660,-460.0,0.00020273,2]
[374252618,1753255853670,-460.0,0.00020273,2]
[374252619,1753255853679,-339.47919734,0.00020273,2]
[374252620,1753255853688,-460.0,0.00020273,2]
[374252621,1753255853698,-460.0,0.00020273,2]
[374252622,1753255853709,-460.0,0.00020273,2]
[374252623,1753255853718,-460.0,0.00020273,2]
[374252624,1753255853727,-460.0,0.00020273,2]
[374252625,1753255853735,-454.12860719,0.00020273,2]
[374252626,1753255853745,-460.0,0.00020273,2]
[374252627,1753255853754,-460.0,0.00020273,2]
[374252628,1753255853763,-460.0,0.00020273,2]
[374252629,1753255853773,-460.0,0.00020273,2]
[374252630,1753255853782,-460.0,0.00020273,2]
[374252631,1753255853791,-460.0,0.00020273,2]
[374252632,1753255853800,-465.03226255,0.00020273,2]
[374252633,1753255853809,-537.82634601,0.00020273,2]
[374252634,1753255853819,-595.55698879,0.00020273,2]
[374252635,1753255853828,-324.67848728,0.00020273,2]
[374252636,1753255853837,-483.75,0.00020273,2]
[374252637,1753255853846,-460.0,0.00020273,2]
[374252638,1753255853856,-750.54,0.00020273,2]
[374252639,1753255853865,-460.0,0.00020273,2]
[374252640,1753255853875,-460.0,0.00020273,2]
[374252641,1753255853884,-460.0,0.00020273,2]
[374252642,1753255853893,-504.3,0.00020273,2]
[374252643,1753255853903,-460.0,0.00020273,2]
[374252644,1753255853913,-175.86896416,0.00020273,2]
[374252645,1753255853922,-460.0,0.00020273,2]
[374252646,1753255853931,-460.0,0.00020273,2]
[374252647,1753255853941,-460.0,0.00020273,2]
[374252648,1753255853950,-4102.28,0.00020273,2]
[374252649,1753255853959,-460.0,0.00020273,2]
[374252650,1753255853968,-460.0,0.00020273,2]
[374252651,1753255853977,-460.0,0.00020273,2]
[374252652,1753255853986,-460.0,0.00020273,2]
[374252653,1753255853995,-460.0,0.00020273,2]
[374252654,1753255854004,-694.17,0.00020273,2]
[374252655,1753255854014,-460.0,0.00020273,2]
[374252656,1753255854024,-460.0,0.00020273,2]
[374252657,1753255854034,-460.0,0.00020273,2]
[374252658,1753255854043,-463.31154415,0.00020273,2]
[374252659,1753255854052,-460.0,0.00020273,2]
[374252660,1753255854061,-460.0,0.00020273,2]
[374252661,1753255854070,-460.0,0.00020273,2]
[374252662,1753255854080,-460.0,0.00020273,2]
[374252663,1753255854089,-1241.6,0.00020273,2]
[374252664,1753255854098,-1140.67,0.00020273,2]
[374252665,1753255854108,-460.0,0.00020273,2]
[374252666,1753255854117,-460.0,0.00020273,2]
[374252667,1753255854127,-460.0,0.00020273,2]
[374252668,1753255854136,-460.0,0.00020273,2]
[374252669,1753255854145,-460.0,0.00020273,2]
[374252670,1753255854155,-1447.65,0.00020273,2]
[374252671,1753255854164,-460.0,0.00020273,2]
[374252672,1753255854173,-460.0,0.00020273,2]
[374252673,1753255854183,-2127.15,0.00020273,2]
[374252674,1753255854192,-460.0,0.00020273,2]
[374252675,1753255854202,-460.0,0.00020273,2]
[374252676,1753255854211,-460.0,0.00020273,2]
[374252677,1753255854220,-460.0,0.00020273,2]
[374252678,1753255854229,-460.0,0.00020273,2]
[374252679,1753255854239,-460.0,0.00020273,2]
[374252680,1753255854248,-460.0,0.00020273,2]
[374252681,1753255854257,-460.0,0.00020273,2]
[374252682,1753255854266,-460.0,0.00020273,2]
[374252683,1753255854275,-460.0,0.00020273,2]
[374252684,1753255854285,-1272.75,0.00020273,2]
[374252685,1753255854294,-460.0,0.00020273,2]
[374252686,1753255854303,-460.0,0.00020273,2]
[374252687,1753255854313,-1455.12,0.00020273,2]
[374252688,1753255854322,-460.0,0.00020273,2]
[374252689,1753255854331,-460.0,0.00020273,2]
[374252690,1753255854341,-460.0,0.00020273,2]
[374252691,1753255854351,-460.0,0.00020273,2]
[374252692,1753255854360,-594.65,0.00020273,2]
[374252693,1753255854370,-463.01,0.00020273,2]
[374252694,1753255854379,-1681.82,0.00020273,2]
[374252695,1753255854389,-460.0,0.00020273,2]
[374252696,1753255854398,-180.0,0.00020273,2]
[374252697,1753255854407,-460.0,0.00020273,2]
[374252698,1753255854416,-460.0,0.00020273,2]
[374252699,1753255854426,-3384.83,0.00020273,2]
[374252700,1753255854435,-460.0,0.00020273,2]
[374252701,1753255854444,-460.0,0.00020273,2]
[374252702,1753255854454,-499.96,0.00020273,2]
[374252703,1753255854463,-460.0,0.00020273,2]
[374252704,1753255854473,-812.87,0.00020273,2]
[374252705,1753255854482,-460.0,0.00020273,2]
[374252706,1753255854491,-460.0,0.00020273,2]
[374252707,1753255854501,-486.02,0.00020273,2]
[374252708,1753255854510,-460.0,0.00020273,2]
[374252709,1753255854519,-460.0,0.00020273,2]
[374252710,1753255854529,-460.0,0.00020273,2]
[374252711,1753255854538,-460.0,0.00020273,2]
[374252712,1753255854548,-2917.93,0.00020273,2]
[374252713,1753255854557,-1190.21,0.00020273,2]
[374252714,1753255854566,-460.0,0.00020273,2]
[374252715,1753255854576,-1775.05,0.00020273,2]
[374252716,1753255854585,-460.0,0.00020273,2]
[374252717,1753255854594,-2438.43,0.00020273,2]
[374252718,1753255854604,-460.0,0.00020273,2]
[374252719,1753255854615,-460.0,0.00020273,2]
[374252720,1753255854629,-460.0,0.00020273,2]
[374252721,1753255854638,-460.0,0.00020273,2]
[374252722,1753255854648,-1445.45940499,0.00020314,3]
[374252723,1753255854658,-502.92612429,0.00020321,2]
[374252724,1753255854667,-508.52113841,0.00020368,2]
[374252725,1753255854676,-160.0,0.00020425,2]
[374252726,1753255854686,-2361.86,0.00020438,3]
[374252727,1753255854695,-1180.94,0.00020438,3]
[374252728,1753255854705,-590.46,0.00020438,3]
[374252729,1753255854715,-1548.59,0.00020447,2]
[374252730,1753255854725,-2405.88,0.00020447,2]
[374252731,1753255854734,-460.0,0.00020447,2]
[374252732,1753255854743,-460.0,0.00020447,2]
[374252733,1753255854752,-1000.0,0.00020521,2]
[374252734,1753255854762,-1000.0,0.00020521,2]
[374252735,1753255854771,-500.0,0.00020521,2]
[374252736,1753255854781,-500.0,0.00020521,2]
[374252737,1753255854791,-1000.0,0.00020521,2]
[374252738,1753255854801,-500.0,0.00020521,2]
[374252739,1753255854811,-160.0,0.00020521,3]
[374252740,1753255854820,-214.67886746,0.00020521,3]
[374252741,1753255854829,-476.696448,0.00020521,3]
[374252742,1753255854841,-1445.45940499,0.00020521,3]
[374252743,1753255854850,-12622.36869388,0.00020521,3]
[374252744,1753255854859,-460.0,0.00020547,2]
[374252745,1753255854868,-460.0,0.00020547,2]
[374252746,1753255854879,-460.0,0.00020547,2]
[374252747,1753255854888,-460.0,0.00020547,2]
[374252748,1753255854898,-460.0,0.00020547,2]
[374252749,1753255854907,-460.0,0.00020547,2]
[374252750,1753255854918,-460.0,0.00020547,2]
[374252751,1753255854927,-1399.15,0.00020547,2]
[374252752,1753255854937,-460.0,0.00020547,2]
[374252753,1753255854946,-460.0,0.00020547,2]
[374252754,1753255854956,-467.85262096,0.00020547,2]
[374252755,1753255854965,-460.0,0.00020547,2]
[374252756,1753255854975,-460.0,0.00020547,2]
[374252757,1753255854985,-483.75,0.00020547,2]
[374252758,1753255854995,-460.0,0.00020547,2]
[374252759,1753255855107,-750.54,0.00020547,2]
[374252760,1753255855117,-460.0,0.00020547,2]
[374252761,1753255855126,-460.0,0.00020547,2]
[374252762,1753255855135,-504.3,0.00020547,2]
[374252763,1753255855145,-460.0,0.00020547,2]
[374252764,1753255855154,-460.0,0.00020547,2]
[374252765,1753255855163,-460.0,0.00020547,2]
[374252766,1753255855173,-420.0,0.00020547,2]
[374252767,1753255855182,-4102.28,0.00020547,2]
[374252768,1753255855191,-460.0,0.00020547,2]
[374252769,1753255855203,-460.0,0.00020547,2]
[374252770,1753255855212,-460.0,0.00020547,2]
[374252771,1753255855223,-460.0,0.00020547,2]
[374252772,1753255855233,-694.17,0.00020547,2]
[374252773,1753255855243,-460.0,0.00020547,2]
[374252774,1753255855253,-599.02740519,0.00020547,2]
[374252775,1753255855263,-460.0,0.00020547,2]
[374252776,1753255855274,-460.0,0.00020547,2]
[374252777,1753255855283,-460.0,0.00020547,2]
[374252778,1753255855292,-1241.6,0.00020547,2]
[374252779,1753255855302,-1140.67,0.00020547,2]
[374252780,1753255855311,-460.0,0.00020547,2]
[374252781,1753255855321,-500.76,0.00020547,2]
[374252782,1753255855330,-460.0,0.00020547,2]
[374252783,1753255855340,-460.0,0.00020547,2]
[374252784,1753255855349,-460.0,0.00020547,2]
[374252785,1753255855358,-1447.65,0.00020547,2]
[374252786,1753255855367,-460.0,0.00020547,2]
[374252787,1753255855377,-460.0,0.00020547,2]
[374252788,1753255855387,-2127.15,0.00020547,2]
[374252789,1753255855396,-460.0,0.00020547,2]
[374252790,1753255855406,-460.0,0.00020547,2]
[374252791,1753255855416,-460.0,0.00020547,2]
[374252792,1753255855426,-237.67941125,0.00020547,2]
[374252793,1753255855435,-460.0,0.00020547,2]
[374252794,1753255855445,-460.0,0.00020547,2]
[374252795,1753255855455,-460.0,0.00020547,2]
[374252796,1753255855465,-460.0,0.00020547,2]
[374252797,1753255855475,-460.0,0.00020547,2]
[374252798,1753255855484,-1272.75,0.00020547,2]
[374252799,1753255855494,-484.82,0.00020547,2]
[374252800,1753255855503,-460.0,0.00020547,2]
[374252801,1753255855513,-1455.12,0.00020547,2]
[374252802,1753255855523,-160.98,0.00020547,2]
[374252803,1753255855533,-460.0,0.00020547,2]
[374252804,1753255855542,-460.0,0.00020547,2]
[374252805,1753255855551,-252.45,0.00020547,2]
[374252806,1753255855561,-594.65,0.00020547,2]
[374252807,1753255855570,-463.01,0.00020547,2]
[374252808,1753255855580,-1681.82,0.00020547,2]
[374252809,1753255855590,-460.0,0.00020547,2]
[374252810,1753255855601,-460.0,0.00020547,2]
[374252811,1753255855611,-3384.83,0.00020547,2]
[374252812,1753255855622,-460.0,0.00020547,2]
[374252813,1753255855635,-460.0,0.00020547,2]
[374252814,1753255855644,-499.96,0.00020547,2]
[374252815,1753255855654,-460.0,0.00020547,2]
[374252816,1753255855665,-812.87,0.00020547,2]
[374252817,1753255855674,-460.0,0.00020547,2]
[374252818,1753255855684,-460.0,0.00020547,2]
[374252819,1753255855693,-191.30406378,0.00020547,2]
[374252820,1753255855702,-455.24924495,0.00020547,2]
[374252821,1753255855712,-460.0,0.00020547,2]
[374252822,1753255855722,-2917.93,0.00020547,2]
[374252823,1753255855732,-1190.21,0.00020547,2]
[374252824,1753255855741,-460.0,0.00020547,2]
[374252825,1753255855751,-1775.05,0.00020547,2]
[374252826,1753255855760,-460.0,0.00020547,2]
[374252827,1753255855770,-460.0,0.00020547,2]
[374252828,1753255855779,-2438.43,0.00020547,2]
[374252829,1753255855788,-460.0,0.00020547,2]
[374252830,1753255855798,-460.0,0.00020547,2]
[374252831,1753255855808,-160.0,0.00020586,2]
[374252832,1753255855817,-160.0,0.00020589,2]
[374252833,1753255855827,-215.84326551,0.00020589,2]
[374252834,1753255855836,-12622.36869388,0.00020589,2]
[374252835,1753255855846,-160.0,0.00020589,2]
[374252836,1753255855855,-476.696448,0.00020589,2]
[374252837,1753255855866,-160.0,0.00020589,2]
[374252838,1753255855877,-231.11583447,0.00020589,2]
[374252839,1753255855888,-160.0,0.00020589,2]
[374252840,1753255855898,-214.67886746,0.00020589,2]
[374252841,1753255855908,-160.0,0.00020589,2]
[374252842,1753255855918,-840.06856235,0.00020589,2]
[374252843,1753255855927,-151.0,0.0002062,2]
[374252844,1753255855936,-1623.88,0.00020684,2]
[374252845,1753255855946,-178.56887845,0.00020693,2]
[374252846,1753255855955,-498.315,0.00020693,2]
[374252847,1753255855964,-3317.43940118,0.0002072,2]
[374252848,1753255855974,-1548.59,0.00020721,2]
[374252849,1753255855983,-2405.88,0.00020721,2]
[374252850,1753255855992,-460.0,0.00020721,2]
[374252851,1753255856002,-460.0,0.00020721,2]
[374252852,1753255856011,-1445.45940499,0.00020728,3]
[374252853,1753255856021,-378.52045676,0.00020821,2]
[374252854,1753255856030,-460.0,0.00020821,2]
[374252855,1753255856039,-459.42960073,0.00020821,2]
[374252856,1753255856048,-460.0,0.00020821,2]
[374252857,1753255856058,-151.0,0.00020821,2]
[374252858,1753255856067,-151.0,0.00020821,2]
[374252859,1753255856076,-460.0,0.00020821,2]
[374252860,1753255856085,-460.0,0.00020821,2]
[374252861,1753255856095,-1399.15,0.00020821,2]
[374252862,1753255856104,-460.0,0.00020821,2]
[374252863,1753255856114,-483.75,0.00020821,2]
[374252864,1753255856124,-460.0,0.00020821,2]
[374252865,1753255856133,-750.54,0.00020821,2]
[374252866,1753255856143,-460.0,0.00020821,2]
[374252867,1753255856152,-460.0,0.00020821,2]
[374252868,1753255856161,-504.3,0.00020821,2]
[374252869,1753255856170,-460.0,0.00020821,2]
[374252870,1753255856180,-460.0,0.00020821,2]
[374252871,1753255856197,-460.0,0.00020821,2]
[374252872,1753255856212,-4102.28,0.00020821,2]
[374252873,1753255856227,-466.90345677,0.00020821,2]
[374252874,1753255856238,-460.0,0.00020821,2]
[374252875,1753255856252,-694.17,0.00020821,2]
[374252876,1753255856265,-460.0,0.00020821,2]
[374252877,1753255856280,-464.32247974,0.00020821,2]
[374252878,1753255856293,-460.0,0.00020821,2]
[374252879,1753255856307,-1241.6,0.00020821,2]
[374252880,1753255856322,-1140.67,0.00020821,2]
[374252881,1753255856335,-188.30857997,0.00020821,2]
[374252882,1753255856348,-368.28,0.00020821,2]
[374252883,1753255856363,-460.0,0.00020821,2]
[374252884,1753255856377,-460.0,0.00020821,2]
[374252885,1753255856391,-1447.65,0.00020821,2]